Cogmind - Beta 17.1 --- EXPLORER MODE // 2026.09.12 @ 08:10:53 // Winter2019/RPGLIKE Player: Scraplet Result: Self-destructed Performance ------------- Evolutions (3) 1500 Regions Visited (6) 1200 Robots Destroyed (124) 620 Value Destroyed (4316) 4316 Prototype IDs (2) 40 Alien Tech Used (0) 0 Bonus (13997) 13997 TOTAL SCORE: 21673 Bonus ------- High Alert Combat Kills 342 Follower Combat Kills 355 Prayed to X0-1V1 5000 Major X0-1V1 Interference 6900 Entered Garrisons 400 Used RIF Installer 1000 Cogmind --------- Core Integrity 961/1500 Matter 333/800 Energy 339/1150 System Corruption 0% Temperature Cool (0) Movement Hovering (160) Ox1 Location -7/Garrison Parts ------- > --- POWER (2) -------- Micro Nuclear Core > --- PROPULSION (3) --- Advanced Treads Medium Treads Gravmag System > --- UTILITY (3) ------ Trap Scanner (fused) Terrain Scanner System Restoration Module > --- WEAPON (2) ------- Beam Rifle Beam Rifle > --- INVENTORY (7) ---- Authchip [R/Combat] Authchip [R/Combat] Beam Rifle Flak Cannon Remote Datajack Peak State ------------ > --- POWER ------------ Micro Nuclear Core > --- PROPULSION ------- Advanced Treads Medium Treads Gravmag System > --- UTILITY ---------- Trap Scanner System Restoration Module X0-1V1's Piety Tracker > --- WEAPON ----------- Heavy Missile Launcher Remote Datajack > --- INVENTORY -------- Terrain Scanner Authchip [R/Combat] Authchip [R/Combat] Authchip [R/Combat] Flak Cannon [Rating: 44] Favorites ----------- Power Light Nuclear Core Engine Ion Engine Power Core Light Nuclear Core Propulsion Aluminum Leg Treads Light Treads Leg Aluminum Leg Hover Unit Backup Propulsion III Utility X0-1V1's Piety Tracker Device X0-1V1's Piety Tracker Processor Advanced Targeting Computer Hackware Authchip [R/Combat] Protection Medium Reactive Plating Weapon Improved Assault Rifle Energy Gun EM Shotgun Ballistic Gun Improved Assault Rifle Ballistic Cannon Flak Cannon Launcher Heavy Missile Launcher Special Weapon Remote Datajack Impact Weapon Heavy Flail Slashing Weapon Greatsword Build | -11 -10 -9 -8 -8 -7 -7 ------- Run | Yrd Mat Mat Mat Gar Fac Gar Slots Evolved 6 | 3 . . . . 3 . Power 1 | . . . . . 1 . Propulsion 3 | 1 . . . . 2 . Utility 1 | 1 . . . . . . Weapon 1 | 1 . . . . . . Parts Attached 49 | 7 5 2 11 4 16 4 Power 5 | 1 1 . 1 1 1 . Engine 3 | 1 1 . 1 . . . Core 2 | . . . . 1 1 . Reactor . | . . . . . . . Propulsion 11 | 2 . . 4 . 4 1 Treads 4 | . . . 1 . 3 . Leg 4 | 2 . . 1 . 1 . Wheel . | . . . . . . . Hover 3 | . . . 2 . . 1 Flight . | . . . . . . . Utility 17 | 2 2 1 1 2 9 . Device 8 | . 2 1 1 1 3 . Storage . | . . . . . . . Processor 2 | . . . . . 2 . Hackware 3 | . . . . . 3 . Protection 4 | 2 . . . 1 1 . Artifact . | . . . . . . . Weapon 16 | 2 2 1 5 1 2 3 Energy Gun 3 | 1 . . . . . 2 Energy Cannon . | . . . . . . . Ballistic Gun 9 | 1 2 1 4 1 . . Ballistic Cannon 1 | . . . 1 . . . Launcher 1 | . . . . . 1 . Special Weapon 1 | . . . . . . 1 Impact Weapon . | . . . . . . . Slashing Weapon 1 | . . . . . 1 . Piercing Weapon . | . . . . . . . Special Melee Weapon . | . . . . . . . Unidentified Prototypes 2 | . . 1 1 . . . Parts Lost 6 | . . . . 2 3 1 Power . | . . . . . . . Propulsion . | . . . . . . . Utility 6 | . . . . 2 3 1 Weapon . | . . . . . . . Highest Loss Streak 2 | . . . . 2 1 1 To Critical Strikes . | . . . . . . . Average Backups 6 | . 3 6 7 6 6 6 Power . | . . 1 1 . . . Propulsion . | . . . . . . . Utility 3 | . 2 3 2 2 5 3 Weapon 2 | . 1 2 3 3 . 2 Tool/Special . | . . . . . . . Unused Backups 10 | . 3 . 1 1 . 5 Power 1 | . . . . 1 . . Propulsion . | . . . . . . . Utility 5 | . . . 1 . . 4 Weapon 4 | . 3 . . . . 1 Tool/Special . | . . . . . . . Average Slot Usage (%) 85 | . 100 92 92 93 74 77 Engine 6 | . 14 14 14 8 . . Core 5 | . . . . 5 8 10 Treads 6 | . . . 6 14 3 20 Leg 9 | . 28 28 6 . 6 . Hover 3 | . . . 7 . 6 9 Device 20 | . 11 24 28 22 19 21 Processor 2 | . . . . . 5 . Protection 6 | . 16 . . 13 3 . Energy Gun 2 | . 3 10 13 . . 3 Ballistic Gun 12 | . 24 13 12 18 6 . Ballistic Cannon 3 | . . . 2 9 3 . Slashing Weapon 1 | . . . . . 5 . Peak Build Rating 44 | 7 9 23 29 29 40 44 Average Rating 25 | 4 8 15 25 27 32 30 On Entrance 18 | . 7 9 23 25 29 36 Avg Prop Armor Cover (%) 8 | . . . . . 4 23 Naked Turns . | . . . . . . . Heaviest Build 39 | 10 14 14 17 39 35 20 Greatest Support 50 | 20 20 20 23 20 50 50 Greatest Overweight (x) 5 | . . . 2 1 5 2 Average Overweight (x) . | . . . . . . 1 Largest Inventory Capacity 7 | 5 5 7 7 7 7 7 Average Capacity 6 | 4 5 6 7 7 7 7 Most Carried 7 | 1 5 7 7 7 7 7 Average Carried 6 | . 3 6 7 6 6 6 Final Capacity 7 | 5 5 7 7 7 7 7 Final Carried 7 | 1 5 7 7 6 5 5 Class Distribution -------------------- 52% | Wizard-Mutant 28% | Hacker-Mutant 17% | Wizard-Gladiator Dominant Class ---------------- Hacker-Mutant | -10/Materials Hacker-Mutant | -9/Materials Hacker-Mutant | -8/Materials Wizard-Mutant | -8/Garrison Wizard-Mutant | -7/Factory Wizard-Mutant | -7/Garrison Resources | -11 -10 -9 -8 -8 -7 -7 ----------- Run | Yrd Mat Mat Mat Gar Fac Gar Matter Collected 2737 | 270 156 533 385 506 606 281 Remotely . | . . . . . . . Salvage Created 4094 | . 418 768 1044 622 1125 117 Parts 225 | . 15 53 54 44 50 9 Haulers Intercepted 2 | . . 1 1 . . . Recyclers Shooed 3 | . 1 1 . . 1 . Parts Field Recycled . | . . . . . . . Retrieved Matter . | . . . . . . . Parts Self-Destructed . | . . . . . . . Prevented . | . . . . . . . Parts Restored . | . . . . . . . Kills | -11 -10 -9 -8 -8 -7 -7 ------- Run | Yrd Mat Mat Mat Gar Fac Gar Combat Hostiles Destroyed 100 | . 7 22 20 28 21 2 Melee 8 | . . . . . 8 . Guns 72 | . 7 19 17 22 7 . Cannons 13 | . . . 1 6 6 . AOE 6 | . . 2 2 . . 2 Classes Destroyed 13 | . 2 5 3 1 2 . Worker 3 | . . . . . 3 . Builder 9 | . . 1 2 . 6 . Tunneler 1 | . . 1 . . . . Hauler 2 | . . 1 1 . . . Recycler 4 | . . . 1 . 3 . Operator 1 | . . . 1 . . . Watcher 4 | . 1 1 1 . 1 . Swarmer 22 | . . 8 3 9 2 . Cutter 1 | . . . . 1 . . Grunt 52 | . 7 13 10 13 8 1 Sentry 13 | . . 1 6 4 2 . Hunter 7 | . . . 1 1 5 . Programmer 5 | . . . . . 4 1 Best Kill Streak 7 | . 3 5 5 7 4 1 Combat Bots Only 7 | . 3 4 4 7 3 1 Max Kills in Single Turn 4 | . 2 2 1 1 4 1 Gunslinging 1 | . 1 . . . . . Exploded 1 | . . 1 1 . . 1 Melee 1 | . . . . . 1 . Uniques/NPCs Destroyed . | . . . . . . . Combat | -11 -10 -9 -8 -8 -7 -7 -------- Run | Yrd Mat Mat Mat Gar Fac Gar Hostile Shots Fired 771 | . 27 142 128 201 263 10 Missed 234 | . 9 33 54 44 89 5 Hits 537 | . 18 109 74 157 174 5 Melee 5 | . . . . 5 . . Projectile 532 | . 18 109 74 152 174 5 AOE 2 | . . . . 2 . . Critical Strikes 14 | . . 1 4 4 4 1 Part Disruptions 1 | . . . . . 1 . Damage Taken 4145 | . 329 675 500 743 1638 260 Core 3047 | . 263 520 392 451 1203 218 Absorbed by Shields 509 | . . . 179 330 . . Redirected to Core 2157 | . 214 387 265 332 811 148 Ignored by Resistances 3245 | . 195 455 416 1023 1007 149 Core Remaining (%) 84 | 100 67 96 . 74 . . Volleys Fired 299 | . 17 53 67 70 80 12 Largest 2 | . 2 2 2 2 2 2 Hottest 112 | . 46 95 82 62 60 112 Shots Fired 488 | . 34 84 112 140 104 14 Gun 420 | . 34 84 105 113 80 4 Cannon 58 | . . . 7 27 24 . Launcher 5 | . . . . . . 5 Special 5 | . . . . . . 5 Kinetic 385 | . 34 40 67 140 104 . Thermal 4 | . . . . . . 4 Explosive 5 | . . . . . . 5 Electromagnetic 89 | . . 44 45 . . . Robot Hit Streak 61 | . 18 34 61 33 45 30 Robot Miss Streak 3 | . 1 2 3 2 2 1 Penetration Max . | . . . . . . . Secondary Targets 17 | . 4 6 2 5 . . Max Gunslinging Chain 1 | . 1 1 1 1 . . Shots Hit Robots 444 | . 28 70 104 113 121 8 Core Hits 249 | . 12 35 61 64 70 7 Critical Kills 1 | . . . . 1 . . Critical Parts Destroyed 3 | . . 1 . 1 1 . Critical Strikes 9 | . . 1 . 2 6 . Destroy 4 | . . 1 . 2 1 . Sever 5 | . . . . . 5 . Melee Attacks 25 | . . . . . 25 . Impact 1 | . . . . . 1 . Slashing 24 | . . . . . 24 . Piercing . | . . . . . . . Sneak Attacks 3 | . . . . . 3 . Combat Hostiles . | . . . . . . . Follow-up Attacks . | . . . . . . . Damage Inflicted 10033 | . 434 1301 2152 1986 3541 619 Guns 5925 | . 433 1194 1738 1480 1080 . Cannons 1200 | . . . 177 505 518 . Explosions 1441 | . . 107 227 . 488 619 Melee 1455 | . . . . . 1455 . Ramming 12 | . 1 . 10 1 . . Kinetic 5719 | . 433 540 1163 1985 1598 . Thermal 822 | . . 107 227 . 488 . Explosive 619 | . . . . . . 619 Electromagnetic 1406 | . . 654 752 . . . Impact 60 | . . . . . 60 . Slashing 1395 | . . . . . 1395 . Piercing . | . . . . . . . Highest Corruption 8 | . 1 1 2 2 8 . Average Corruption 3 | . 1 1 1 2 5 . Corruption Purged 1 | . . . . . 1 . Corruption Blocked . | . . . . . . . Effects 88 | . 1 7 6 24 50 . Message Errors 15 | . . 1 3 4 7 . Matter Fused 23 | . 1 3 1 3 15 . Heat Flow Errors 18 | . . 2 . 5 11 . Energy Discharges 5 | . . . . 2 3 . Parts Rejected 3 | . . 1 . . 2 . Data Loss (minor) 12 | . . . 1 5 6 . Data Loss (major) 2 | . . . . 1 1 . Misfires 3 | . . . . 2 1 . Alerts 4 | . . . 1 . 3 . Weapon Failures 3 | . . . . 2 1 . Overload Shots . | . . . . . . . Overflow Damage 331 | . . . . . 331 . Projectiles . | . . . . . . . Explosions 163 | . . . . . 163 . Melee 168 | . . . . . 168 . Knockbacks 24 | . . . 4 8 12 . Impact . | . . . . . . . Kinetic 24 | . . . 4 8 12 . Secondary . | . . . . . . . Self-Inflicted Damage 261 | . . . 20 . 129 112 Shots 6 | . . . 1 . 2 3 Rammed 2 | . . . 1 1 . . Targets Rammed 3 | . 1 . 1 1 . . Kicked 1 | . 1 . . . . . Crushed . | . . . . . . . Highest Temperature 295 | . 9 286 247 274 295 . Average Temperature 94 | . 4 112 62 86 122 . Received Heat Transfer 1995 | . 120 474 325 518 501 57 Effects 4 | . . 1 . 1 2 . Energy Bleed 3 | . . 1 . . 2 . Interference 1 | . . . . 1 . . Siege Activations . | . . . . . . . Martial Activations . | . . . . . . . Shielding Activations . | . . . . . . . Robots Disrupted . | . . . . . . . Combat Hostiles . | . . . . . . . Robots Corrupted 1 | . . 1 . . . . Combat Hostiles 1 | . . 1 . . . . Parts Fried 6 | . . 2 4 . . . Impact Corruptions 1 | . . . . . 1 . Robots Melted . | . . . . . . . Combat Hostiles . | . . . . . . . Parts Melted 1 | . . . . . 1 . Heat Transferred 750 | . . 150 300 . 300 . Parts Sabotaged . | . . . . . . . Parts Stolen . | . . . . . . . Parts Stripped . | . . . . . . . Power Chain Reactions 8 | . . 2 5 . 1 . Alert | -11 -10 -9 -8 -8 -7 -7 ------- Run | Yrd Mat Mat Mat Gar Fac Gar Maximum Alert Level 4 | . . . 2 4 2 1 Low Security (%) 58 | 100 100 100 2 . 83 46 Level 1 17 | . . . 57 17 13 53 Level 2 9 | . . . 39 23 3 . Level 3 14 | . . . . 57 . . Level 4 . | . . . . . . . Level 5 . | . . . . . . . High Security . | . . . . . . . Max Security . | . . . . . . . Peak Influence 1115 | . 115 143 517 1115 434 331 Initial 434 | . . 20 24 225 434 . Average 251 | . 8 40 353 707 76 210 Influence Increases 3658 | . 196 557 868 910 726 401 Destroy 0b10 Robot/C 2200 | . 140 440 400 560 440 220 Destroy 0b10 Robot/NC 125 | . 5 20 30 . 70 . Destroy Leader 422 | . 32 74 124 40 112 40 Allied During Kill 29 | . . . . . 2 27 Successful Hack 64 | . 19 13 12 10 . 10 Disable Machine 64 | . . 8 . . 56 . Anti-Garrison Action 350 | . . . . 300 . 50 Destroy Structure 116 | . . 2 14 . 46 54 Miscellaneous 288 | . . . 288 . . . Influence Decreases 3327 | . 126 544 494 252 1841 70 Entered New Map 1022 | . . 50 59 232 681 . Time Decay 2165 | . 126 494 435 . 1110 . Lost Part 60 | . . . . 20 30 10 Lost Ally 80 | . . . . . 20 60 Squads Dispatched 19 | . 2 2 6 . 9 . Investigation 7 | . 2 1 2 . 2 . Extermination 5 | . . . . . 5 . Reinforcement 3 | . . 1 1 . 1 . Assault 1 | . . . . . 1 . Garrison 3 | . . . 3 . . . Intercept . | . . . . . . . Searches Triggered . | . . . . . . . Construction Impeded 1 | . . . . . 1 . Haulers Reinforced . | . . . . . . . Active Scanning Responses . | . . . . . . . Cargo Convoy Interrupts . | . . . . . . . Stealth | -11 -10 -9 -8 -8 -7 -7 --------- Run | Yrd Mat Mat Mat Gar Fac Gar Distress Signals 5 | . 1 1 2 . 1 . Communications Jammed . | . . . . . . . Distress Signals . | . . . . . . . Times Spotted 152 | . 9 36 27 33 33 14 Peak Tracking Total 6 | . 3 5 4 6 4 3 Tactical Retreats 6 | . 2 4 . . . . ECM-based Alert Blocks 9 | . 2 7 . . . . Traps | -11 -10 -9 -8 -8 -7 -7 ------- Run | Yrd Mat Mat Mat Gar Fac Gar Traps Triggered 16 | . 3 2 . 9 2 . Indirectly . | . . . . . . . Trap Hack Attempts . | . . . . . . . Triggered . | . . . . . . . Disarmed . | . . . . . . . Reprogrammed . | . . . . . . . Reused . | . . . . . . . Traps Extracted . | . . . . . . . Installed . | . . . . . . . Triggered . | . . . . . . . Machines | -11 -10 -9 -8 -8 -7 -7 ---------- Run | Yrd Mat Mat Mat Gar Fac Gar Machines Disabled 17 | . . 2 . . 14 1 Max in Single Turn 10 | . . 2 . . 10 1 Garrison Relay 1 | . . . . . . 1 Machines Repaired . | . . . . . . . Machines Dismantled . | . . . . . . . Machines Sabotaged . | . . . . . . . Overloaded Fab Kills . | . . . . . . . Hacking | -11 -10 -9 -8 -8 -7 -7 --------- Run | Yrd Mat Mat Mat Gar Fac Gar Machines Accessed 26 | . 6 4 4 1 10 1 Terminals 19 | . 6 4 3 1 4 1 Fabricators 3 | . . . . . 3 . Repair Stations 1 | . . . . . 1 . Recycling Units 1 | . . . . . 1 . Scanalyzers . | . . . . . . . Garrison Access 2 | . . . 1 . 1 . Total Hacks 95 | . 25 16 11 1 41 1 Successful 71 | . 11 13 7 1 38 1 Failed 24 | . 14 3 4 . 3 . Catastrophic 1 | . . 1 . . . . Database Lockouts . | . . . . . . . Manual 55 | . 23 13 10 1 7 1 Terminals 69 | . 25 16 10 1 16 1 Fabricators 21 | . . . . . 21 . Repair Stations 1 | . . . . . 1 . Recycling Units 1 | . . . . . 1 . Scanalyzers . | . . . . . . . Garrison Access 3 | . . . 1 . 2 . Terminal Hacks 28 | . 6 5 3 1 12 1 Record 2 | . . . . . 2 . Part Schematic 1 | . . . . . 1 . Robot Schematic 4 | . 2 . . . 2 . Open DSF 1 | . . . . . 1 . Level Access Points 3 | . 1 1 1 . . . Branch Access Points 2 | . 1 . 1 . . . Emergency Access Points 2 | . . . . 1 . 1 Machine Index 3 | . . 1 1 . 1 . Recall Reinforcements 1 | . . . . . 1 . Recall Assault 1 | . . . . . 1 . Hauler Manifests 1 | . . 1 . . . . Registered Components 1 | . . . . . 1 . Registered Prototypes 2 | . 1 . . . 1 . Zone Layout 4 | . 1 2 . . 1 . Fabricator Hacks 21 | . . . . . 21 . Network Status 1 | . . . . . 1 . Load Schematic 10 | . . . . . 10 . Build 10 | . . . . . 10 . Repair Station Hacks 1 | . . . . . 1 . Refit 1 | . . . . . 1 . Recycling Unit Hacks 1 | . . . . . 1 . Retrieve Components 1 | . . . . . 1 . Scanalyzer . | . . . . . . . Garrison Access Hacks 3 | . . . 1 . 2 . Unlock Access 2 | . . . 1 . 1 . Coupler Status 1 | . . . . . 1 . Unauthorized Hacks 16 | . 5 7 3 . 1 . Terminals 16 | . 5 7 3 . 1 . Assimilate 3 | . . 3 . . . . Botnet 11 | . 5 3 2 . 1 . Operators 2 | . . 1 1 . . . Fabricators . | . . . . . . . Repair Stations . | . . . . . . . Recycling Units . | . . . . . . . Scanalyzers . | . . . . . . . Garrison Access . | . . . . . . . Data Cores Recovered . | . . . . . . . Used . | . . . . . . . Hacking Detections 12 | . 6 2 2 . 2 . Full Trace Events 9 | . 4 2 2 . 1 . Feedback Events 2 | . 1 . 1 . . . Corruption 2 | . 1 . 1 . . . Feedback Blocked . | . . . . . . . Robot Schematics Acquired 3 | . 1 . . . 2 . Robots Built 15 | . . . . . 15 . Authchips 2 | . . . . . 2 . Time 689 | . . . . . 689 . Total Robot Build Rating 31 | . . . . . 31 . Part Schematics Acquired 1 | . . . . . 1 . Parts Built . | . . . . . . . Authchips . | . . . . . . . Time . | . . . . . . . Total Part Build Rating . | . . . . . . . Part Studies Acquired . | . . . . . . . Parts Repaired . | . . . . . . . Time . | . . . . . . . Parts Recycled . | . . . . . . . Recycled Matter . | . . . . . . . Retrieved Matter . | . . . . . . . Retrieved Components 10 | . . . . . 10 . Parts Scanalyzed . | . . . . . . . Part Schematics Acquired . | . . . . . . . Parts Damaged . | . . . . . . . Bothacking | -11 -10 -9 -8 -8 -7 -7 ------------ Run | Yrd Mat Mat Mat Gar Fac Gar Used RIF Installer 2 | . . . . 1 . 1 Coupler Efficiency 1 | . . . . . . 1 Hotswap 1 | . . . . . 1 . Robots Hacked 1 | . . . . . . 1 Non-combat . | . . . . . . . Combat 1 | . . . . . . 1 Robot Hacks Applied 1 | . . . . . . 1 parse_system 1 | . . . . . . 1 Relay Couplers Released 2 | . . . . . . 2 Machine Destruction 2 | . . . . . . 2 Fabnet Peak Effective % . | . . . . . . . Robots Rewired . | . . . . . . . Allies Hacked 5 | . . . . . 2 3 Hacks Repelled . | . . . . . . . Allies | -11 -10 -9 -8 -8 -7 -7 -------- Run | Yrd Mat Mat Mat Gar Fac Gar Total Allies 21 | . . 1 . . 15 5 Largest Group 7 | . . 1 . . 6 7 Highest-Rated Group 307 | . . 10 . . 171 307 Highest-Rated Ally 95 | . . 10 . . 37 95 Total Orders . | . . . . . . . Ally Attacks 81 | . . . . . 27 54 Total Damage 1684 | . . . . . 284 1400 Kills 13 | . . . . . 2 11 Allies Corrupted 1 | . . . . . 1 . Allies Melted . | . . . . . . . X0-1V1 Amusement Gains 61 | . 11 5 . 10 25 10 Average Entertainment 8 | . 11 11 7 7 7 17 Good Acts 30 | . . 7 . 1 19 3 Bad Acts 40 | . . 4 7 6 19 4 Intel | -11 -10 -9 -8 -8 -7 -7 ------- Run | Yrd Mat Mat Mat Gar Fac Gar Active Infowar (turns) 3887 | . 432 888 154 . 1854 559 Terrain 88 | . . . . . 62 26 Traps 2351 | . . . . . 1792 559 Seismic 603 | . 431 172 . . . . ECM 1474 | . 432 888 154 . . . Robot Analysis Total . | . . . . . . . Derelict Logs Recovered . | . . . . . . . Drone Launches . | . . . . . . . Drone Recoveries . | . . . . . . . Exploration | -11 -10 -9 -8 -8 -7 -7 ------------- Run | Yrd Mat Mat Mat Gar Fac Gar Turns Passed 8378 | 75 1058 888 594 2118 3086 559 Spaces Moved 3873 | 56 760 395 338 774 1315 235 Core 100 | 4 . . . . 96 . Treads 1274 | . . . 117 774 365 18 Legs 2155 | 52 760 395 94 . 854 . Wheels . | . . . . . . . Hover 344 | . . . 127 . . 217 Flight . | . . . . . . . Fastest Speed 50 | 50 120 120 56 160 120 152 Average Speed 158 | 115 120 120 113 236 154 184 Slowest Speed 300 | 120 120 120 180 240 300 220 Overloaded Moves . | . . . . . . . Propulsion Burnouts . | . . . . . . . Robots Hopped . | . . . . . . . Potential Cave-ins 11 | . . . . . 11 . Cave-ins Triggered . | . . . . . . . Exploration Rate (%) 42 | 4 90 31 30 72 31 37 Regions Visited 6 Branch Regions . Pre-discovered Areas . | . . . . . . . Known Exits Taken 5 | 1 1 1 1 . 1 . Unknown Exits Taken . | . . . . . . . Scrap Searched . | . . . . . . . Spaces Dug . | . . . . . . . Terrain Destroyed 120 | . . 2 13 . 45 60 Melee . | . . . . . . . Projectile . | . . . . . . . AOE 120 | . . 2 13 . 45 60 Terrain Rammed . | . . . . . . . Walls Destroyed . | . . . . . . . Machines Disabled . | . . . . . . . Actions | -11 -10 -9 -8 -8 -7 -7 --------- Run | Yrd Mat Mat Mat Gar Fac Gar Total 5602 | 63 873 724 443 938 2214 347 Wait 1177 | . 77 240 2 41 740 77 Move 3867 | 55 759 394 337 773 1314 235 Hop . | . . . . . . . Pick Up 21 | 1 8 1 1 6 3 1 Fast Attach 33 | 7 1 1 6 3 13 2 Attach 6 | . . . . . 4 2 Detach 1 | . . . . . 1 . Swap 16 | . 4 1 5 4 1 1 Drop 33 | . 6 . 10 8 8 1 Fire 299 | . 17 53 67 70 80 12 Melee 25 | . . . . . 25 . Ram . | . . . . . . . Kick 1 | . 1 . . . . . Crush 2 | . . . 1 1 . . Escape Stasis 16 | . . . . 16 . . Rewire 9 | . . . . 1 . 8 Trap . | . . . . . . . Miscellaneous 96 | . . 34 14 15 25 8 Route ------- -11/Scrapyard -10/Materials (discovered 6 exits: *Mat x3 / *Min x2 / *Sub) -9/Materials (discovered 5 exits: *Mat x3 / *Min x2) -8/Materials (discovered 4 exits: *Fac x3 / Gar) -8/Garrison (discovered 3 exits: *Fac x3) -7/Factory (discovered 6 exits: *Fac x3 / *Sto / Low / Gar) -7/Garrison History --------- Turn | Location | Event 7 | -11/Scrapyard | Upgraded with Propulsion slot (x1) 7 | -11/Scrapyard | Upgraded with Utility slot (x1) 7 | -11/Scrapyard | Upgraded with Weapon slot (x1) 9 | -11/Scrapyard | Identified exit to Materials 9 | -11/Scrapyard | Discovered exit to Materials (range 14) 76 | -11/Scrapyard | Entered Materials 305 | -10/Materials | Build established: Hacker-Mutant 363 | -10/Materials | Identified exit to Mines 363 | -10/Materials | Discovered exit to Mines (range 12) 674 | -10/Materials | Identified exit to Materials 674 | -10/Materials | Discovered exit to Materials (range 16) 725 | -10/Materials | Discovered exit to Mines (range 11) 802 | -10/Materials | Discovered exit to Materials (range 8) 1041 | -10/Materials | Identified exit to Subcaves 1041 | -10/Materials | Discovered exit to Subcaves (range 16) 1125 | -10/Materials | Prayed at D.C.S.S. Altar Unit 1125 | -10/Materials | Reached level 2 1125 | -10/Materials | Reached level 3 1134 | -10/Materials | Entered another Materials area 1136 | -9/Materials | Reached level 4 1190 | -9/Materials | X0-1V1 sent hostile G-34 Mercenary (x3) 1224 | -9/Materials | Identified exit to Materials 1323 | -9/Materials | Reached level 5 1373 | -9/Materials | Identified exit to Mines 1373 | -9/Materials | X0-1V1 revealed exit location to -9/Mines 1477 | -9/Materials | X0-1V1 revealed exit location to -9/Mines 1863 | -9/Materials | Reached level 6 1910 | -9/Materials | X0-1V1 sent you into danger 2022 | -9/Materials | Entered another Materials area 2024 | -8/Materials | Reached level 7 2038 | -8/Materials | X0-1V1 added 0b10 threat records associated with you (major) 2196 | -8/Materials | X0-1V1 announced a LAN party 2196 | -8/Materials | Reached level 8 2280 | -8/Materials | Garrison activated, responded to threat 2307 | -8/Materials | X0-1V1 mutated your Propulsion slot to Utility slot 2341 | -8/Materials | Reached level 9 2442 | -8/Materials | Identified exit to Factory 2442 | -8/Materials | Discovered exit to Factory (range 14) 2536 | -8/Materials | Reached level 10 2611 | -8/Materials | Identified exit to Garrison 2616 | -8/Materials | Entered Garrison 2660 | -8/Garrison | Build established: Wizard-Mutant 2728 | -8/Garrison | Triggered checkpoint 2989 | -8/Garrison | Reached level 11 3024 | -8/Garrison | Destroyed 7 combat bots 3175 | -8/Garrison | Triggered checkpoint 3264 | -8/Garrison | Triggered checkpoint 3280 | -8/Garrison | Discovered exit to Factory (range 15) 3392 | -8/Garrison | X0-1V1 vaporized surrounding terrain (radius 18) 3446 | -8/Garrison | Triggered checkpoint 3490 | -8/Garrison | Triggered checkpoint 3591 | -8/Garrison | Discovered exit to Factory (range 13) 3600 | -8/Garrison | Triggered checkpoint 3607 | -8/Garrison | Reached level 12 3837 | -8/Garrison | Discovered exit to Factory (range 14) 3860 | -8/Garrison | Triggered checkpoint 4144 | -8/Garrison | Triggered checkpoint 4328 | -8/Garrison | Installed Relay Interface Framework 4734 | -8/Garrison | Entered Factory 4736 | -7/Factory | Reached level 13 5440 | -7/Factory | Reached level 14 5474 | -7/Factory | Upgraded with Propulsion slot (x1) 5857 | -7/Factory | Core integrity fell below 50% 6106 | -7/Factory | X0-1V1 put everyone to sleep 6231 | -7/Factory | X0-1V1 activates XOMVISION 6288 | -7/Factory | Identified exit to Factory 6288 | -7/Factory | Discovered exit to Factory (range 9) 6294 | -7/Factory | Discovered exit to Factory (range 15) 6531 | -7/Factory | Fabricated G-34 Mercenary (x3) 6551 | -7/Factory | Build established: Wizard-Gladiator 6573 | -7/Factory | Fabricated G-34 Mercenary (x3) 6598 | -7/Factory | P-60 Hacker assimilated allied Mercenary 4e 6818 | -7/Factory | X0-1V1 woke everyone up 6952 | -7/Factory | Fabricated G-34 Mercenary (x3) 7002 | -7/Factory | X0-1V1 caused items to flee you 7004 | -7/Factory | Identified exit to Lower Caves 7004 | -7/Factory | X0-1V1 revealed exit location to -7/Lower Caves 7010 | -7/Factory | Expanded RIF knowledge: Hotswap 7022 | -7/Factory | X0-1V1 enhanced Transport squad support 7029 | -7/Factory | X0-1V1 redirected Transport squads to designated parking area 7034 | -7/Factory | X0-1V1 vaporized surrounding terrain (radius 18) 7035 | -7/Factory | Core integrity restored by X0-1V1 (+360) 7037 | -7/Factory | X0-1V1 foreshadows a heat wave 7042 | -7/Factory | X0-1V1 activates XOMVISION 7055 | -7/Factory | Reached level 15 7055 | -7/Factory | Upgraded with Power slot (x1) 7055 | -7/Factory | Upgraded with Propulsion slot (x1) 7055 | -7/Factory | X0-1V1 revealed exit location to -6/Factory 7110 | -7/Factory | Lost 6 allies 7145 | -7/Factory | Items stopped fleeing you 7168 | -7/Factory | X0-1V1 vaporized surrounding terrain (radius 23) 7181 | -7/Factory | Ambient heat levels rising (+10) 7255 | -7/Factory | Fabricated M-28 Smith? 7395 | -7/Factory | Ambient heat levels rising (+10) 7464 | -7/Factory | Identified exit to Storage 7464 | -7/Factory | Discovered exit to Storage (range 11) 7584 | -7/Factory | Fabricated P-60 Hacker (x2) 7605 | -7/Factory | Ambient heat levels falling (-10) 7644 | -7/Factory | Fabricated M-28 Smith (x1) 7711 | -7/Factory | Fabricated P-60 Hacker (x2) 7818 | -7/Factory | Identified exit to Garrison 7820 | -7/Factory | Entered Garrison 7820 | -7/Garrison | Accompanied by 5 allies 7894 | -7/Garrison | Triggered checkpoint 7904 | -7/Garrison | Hacker 4d assimilated hostile G-47 Trooper 7951 | -7/Garrison | Garrison Relay disabled 7956 | -7/Garrison | X0-1V1 vaporized surrounding terrain (radius 23) 7957 | -7/Garrison | Found embedded Infiltrators 8026 | -7/Garrison | X0-1V1 caused items to flee you 8053 | -7/Garrison | Build established: Wizard-Mutant 8062 | -7/Garrison | Triggered checkpoint 8066 | -7/Garrison | Triggered checkpoint 8072 | -7/Garrison | Reached level 16 8076 | -7/Garrison | Triggered checkpoint 8079 | -7/Garrison | Hacker 4a assimilated hostile G-47 Trooper 8113 | -7/Garrison | Lost 4 allies 8194 | -7/Garrison | Triggered checkpoint 8240 | -7/Garrison | Expanded RIF knowledge: Coupler Efficiency 8281 | -7/Garrison | Items stopped fleeing you 8379 | -7/Garrison | Self-destructed Last Messages --------------- 08105_ Slug penetrates B-48 Gladiator. 08105_ B-48 Gladiator destroyed. 08118_ Dropped Hvy. Missile Launcher. 08120_ X0-1V1 causes your matter storage to temporarily balloon in size. (+500 matter capacity) 08143_ Protomatter-72 decays. 08179_ Corrupted Aluminum Leg crushed and broken. 08179_ Particle Gun crushed and broken. 08194_ Hacker 4a fails to hack G-47 Trooper. 08214_ X0-1V1 blurs the world around you (-3 sight range). 08215_ Detecting nearby RIF Installer. 08232_ Trap Scanner disarmed Alarm Trap. Initiating installation procedure... 08240_ Expanded RIF knowledge: Coupler Efficiency. X0-1V1's Piety Tracker suddenly appears amidst shimmering waves of color. 08262_ ALERT: Dispatching investigation squad to Factory. 08281_ Items no longer flee you. 08298_ Acquired 154 matter. 08312_ Trap Scanner disarmed Stasis Trap. 08370_ X0-1V1: "Let the electrons flow!" (+1000 energy capacity) Map ----- +----------------------------------------------------+ | ?????????????????????????????????????????????????? | | ?????????????????????????????????????????????????? | | ?????????????????????????????????????????????????? | | ?????????????????????????????????????????????????? | | ?????????????????????????????????????????????????? | | ?????????????????????????????????????????????????? | | ?????????????????????????????????????????????????? | | ?????????????????????+???????????????????????????? | | ?????????????????????????????????????????????????? | | ?????????????????????+???????????????????????????? | | ?????????????????????????????????????????????????? | | ????????????????????????????????#####????????????? | | ????????????????????????????????#"""#????????????? | | ????????????????????????????????#" "#????????????? | | ????????????????????????????????#" "#????????????? | | ????????????????????????????????#" "#????????????? | | ????????????????????????????????# #????????????? | | ????????????????????????????????## ##????????????? | | ?????????????????????????????????# #?????????????? | | ?????????????????????????????????# #?????+???????? | | ?????????????????????????????????# #?????????????? | | ?????????????????????????????????# #??????????#??? | | ?????????????????????????????????# #+####### #??? | | ?????????????# ###########??????# ? | | ????????????? g#?????## ? | | ?????????????# p @#?????#T ? | | ??????????????????######x #?????## #######++##?? | | ???????????????????????#x #??????# #???????????? | | ?????????+???+??+??????# #??????# #???????????? | | ???????????????????????+ #??????# #???????????? | | ???????????????????????# #??????# +???????????? | | ??+????????????????????# m######## ! #???????????? | | ???????????????????????# ## ## #???????????? | | ??????????????????????## ## ## #???????????? | | ?????????????# ##+#### = #???????????? | | ?????????????+ ^^ [= +???????????? | | ?????????????# ^^ +???????????? | | ?????????????########## ^^## ## #???????????? | | ????????????????????###^^^## ## ###?????????# | | ????????????????????# [ ! #???????### | | ????????????????????# %/* #??????## | | ????????????????????# =% = #?????## | | ????????????????????# % % ###??## | | ????????????????????### ! ## ### #?## | | ????????????######### # ## """####""" | | ?????????? ] """" | | ?????????? ! * = %% + | | ??????????????"####### = * *[ ""*"+"" """" | | ?????????????????????# # %## % ## ##### "" " | | ?????????????????????# = # % ## #???# "" " | +----------------------------------------------------+ Best States ------------- Heat Dissipation 61 Energy Generation 25 Energy Capacity 1360 Matter Stores 1000 Matter Capacity 1000 Sight Range 22 Robot Scan Range 12 Terrain Scan Range 14 Terrain Scan Density 110 ECM Strength 1 Armor Coverage 225 Resistance: KI 65 Resistance: TH 35 Resistance: EX 35 Resistance: EM 35 Resistance: I 35 Resistance: S 35 Resistance: P 35 Propulsion Shielding 33 Utility Shielding 33 Evasion (%) 55 Targeting Accuracy 8 Target Analysis 5 Recoil Reduction 2 Offensive Hacking 50 Defensive Hacking 30 Authchip Count 6 Item Schematics ----------------- Tesla Rifle | -7/Factory | Hacked Robot Schematics ------------------ G-34 Mercenary | -10/Materials | Hacked P-60 Hacker | -7/Factory | Hacked M-28 Smith | -7/Factory | Hacked Fabricated ------------ G-34 Mercenary | x3 | -7/Factory G-34 Mercenary | x3 | -7/Factory G-34 Mercenary | x3 | -7/Factory M-28 Smith | x1 | -7/Factory P-60 Hacker | x2 | -7/Factory | Authchip M-28 Smith | x1 | -7/Factory P-60 Hacker | x2 | -7/Factory | Authchip Repaired ---------- Nothing Studied --------- None Alien Tech Used ----------------- None Achievements -------------- Analysis Probe Fitting Room For Emergencies Only Join The Dark Side Official Business Overwhelming You Will Be Upgraded Challenges ------------ None RPGLIKE | -11 -10 -9 -8 -8 -7 -7 --------- Run | Yrd Mat Mat Mat Gar Fac Gar Levels Raised 15 | . 2 3 4 2 3 1 XP Earned 28875 | 6000 3400 4834 5318 3367 4631 1325 XP Spent 26955 | 5925 210 6900 6200 2900 4820 . Upgrades 63 | 14 5 12 7 2 23 . Power Slot 1 | . . . . . 1 . Propulsion Slot 3 | 1 . . . . 2 . Utility Slot 1 | 1 . . . . . . Weapon Slot 1 | 1 . . . . . . Core Integrity 18 | . 4 . . . 14 . Heat Dissipation 6 | . . . . . 6 . Energy Generation 2 | . . 2 . . . . Inventory Capacity 7 | 5 . 2 . . . . Sensor Range 6 | 6 . . . . . . Terrain Scan Density 1 | . 1 . . . . . Ranged Accuracy 3 | . . 3 . . . . Melee Accuracy 2 | . . 2 . . . . Hack Attack % 6 | . . 2 3 1 . . Hack Defense % 6 | . . 1 4 1 . . Protomatter Created 1309 | . . 304 255 468 282 . Integrity Restored 2148 | . . 758 324 340 549 177 Core 2148 | . . 758 324 340 549 177 Protomatter Decayed 1107 | . 43 50 107 376 289 242 Game ------ Seed MasterSigixNukerbomber Manual? 0 Play Time 01:22:58 Cumulative 42.3 hours Start 2026.09.11 @ 17:40:15 End 2026.09.12 @ 08:10:53 Sessions 9 Manual Loads 0 Difficulty Explorer Special Mode Winter2019/RPGLIKE Game No. 34 Rogue 0 Adventurer 2 Explorer 32 Win Type - Total 0 Types 0/0/0/0/0/0/0/0/0/0 Lore% 19 Gallery% 25 Achievement% 23 Wizard Run 0 Options --------- Layout 0 ASCII 0 Keyboard 0 Movement Mouse Keybinds 0 Fullscreen 1 Font 18/SmallcapsGlow Map View 76x50 Zoom Use 0% Tactical HUD 1 Map Filters NONE Filters NONE Steam SD RUN: 5bd18f15-ccc7-4e9e-8ca6-df77336dd6c6